{"text_format":"3","workbook":"xlsx","n_sheets":4,"sheets":["Početak","Troškovi","Prihod","Rezime profita i gubitka"],"not_rendered":{"charts":1},"read":"whole","date_system":"1900"}

{"sheet":"Početak","index":0,"n_rows":8,"n_cols":2,"rows_kept":8}
[null,"OSNOVNI PODACI O OVOM PREDLOŠKU"]
[null,"Koristite ovu radnu svesku sa budžetom događaja da biste pratili troškove događaja i prihod od događaja."]
[null,"Popunite ime događaja i unesite detalje u tabele na radnim listovima Troškovi i Prihod."]
[null,"Ukupan Troškovi i ukupan prihod izračunavaju se automatski."]
[null,"Rezime profita i gubitka automatski se ažuriraju na radnom listu „Rezime profita i gubitka“."]
[null,"Napomena: "]
[null,"Dodatna uputstva navedena su u koloni A na svakom radnom listu. Taj tekst je namerno skriven. Da biste uklonili tekst, izaberite kolonu A, a zatim izaberite stavku „IZBRIŠI“. Da biste otkrili tekst, izaberite kolonu A, a zatim promenite boju fonta."]
[null,"Da biste saznali više o tabelama, pritisnite taster SHIFT, a zatim unutar tabele pritisnite taster F10, izaberite opciju „TABELA“, a zatim stavku „ALTERNATIVNI TEKST“."]

{"sheet":"Troškovi","index":1,"n_rows":32,"n_cols":8,"rows_kept":32,"merged":[[0,1,0,4],[2,1,3,1]]}
["Unesite procenjene i stvarne troškove za svaku kategoriju na ovom radnom listu, a ime događaja u ćeliju D1 da biste prilagodili naslov ovog i drugih radnih listova. Podnaslov ovog radnog lista nalazi se u ćeliji H1. Korisna uputstva o tome kako da koristite ovaj radni list nalaze se u ćelijama u ovoj koloni. Sledeće uputstvo se nalazi u ćeliji A3.","Budžet događaja za Ime događaja",{"$nulls":5},"TROŠKOVI"]
[]
["Oznaka „Ukupan rashod“ se nalazi u ćeliji sa desne strane, oznaka „Procenjeno“ u ćeliji G3, a „Stvarno“ u ćeliji H3.","UKUPAN TROŠKOVI",{"$nulls":4},"Procenjeno","Stvarno"]
["Ukupni procenjeni troškovi u ćeliji G4 i ukupni stvarni troškovi u ćeliji H4 izračunavaju se automatski. Sledeće uputstvo se nalazi u ćeliji A6.",{"$nulls":5},{"$f":"SUM(C11,C19,C25,C32,G11,G19,G24)","v":{"v":882,"d":"882.00 RSD"}},{"$f":"SUM(D11,D19,D25,D32,H11,H19,H24)","v":{"v":333,"d":"333.00 RSD"}}]
[]
["Unesite Troškovi Na Lokaciji u tabelu koja počinje od ćelije sa desne strane, a Troškovi Za Osveženje u tabelu koja počinje od ćelije F6. Sledeće uputstvo se nalazi u ćeliji A13.","Lokacija","Procenjeno","Stvarni",null,"Osveženje","Procenjeno","Stvarno"]
[null,"Naknade za sobu i predsoblje",{"v":500,"d":"500.00 RSD"},null,null,"Hrana"]
[null,"Osoblje na lokaciji",{"$nulls":3},"Pića",{"v":20,"d":"20.00 RSD"}]
[null,"Oprema",{"$nulls":3},"Posteljina",null,{"v":20,"d":"20.00 RSD"}]
[null,"Stolovi i stolice",{"$nulls":3},"Osoblje i napojnice"]
[null,"Zbir",{"$f":"SUBTOTAL(109,TroškoviNaLokaciji[Procenjeno])","v":{"v":500,"d":"500.00 RSD"}},{"$f":"SUBTOTAL(109,TroškoviNaLokaciji[Stvarni])","v":{"v":0,"d":"0.00 RSD"}},null,"Zbir",{"$f":"SUBTOTAL(109,TroškoviZaOsveženje[Procenjeno])","v":{"v":20,"d":"20.00 RSD"}},{"$f":"SUBTOTAL(109,TroškoviZaOsveženje[Stvarno])","v":{"v":20,"d":"20.00 RSD"}}]
[]
["Unesite Troškovi Za Ukrase u tabelu koja počinje od ćelije sa desne strane, a Troškovi Programa u tabelu koja počinje od ćelije F13. Sledeće uputstvo se nalazi u ćeliji A21.","Dekoracija","Procenjeno","Stvarno",null,"Program","Procenjeno","Stvarno"]
[null,"Cveće",{"v":200,"d":"200.00 RSD"},{"v":300,"d":"300.00 RSD"},null,"Izvođači"]
[null,"Sveće",{"$nulls":3},"Zvučnici",{"v":30,"d":"30.00 RSD"}]
[null,"Rasveta",{"$nulls":3},"Putovanje"]
[null,"Baloni",{"$nulls":3},"Hotel"]
[null,"Papirni materijal",{"$nulls":3},"Drugo"]
[null,"Zbir",{"$f":"SUBTOTAL(109,TroškoviZaUkrase[Procenjeno])","v":{"v":200,"d":"200.00 RSD"}},{"$f":"SUBTOTAL(109,TroškoviZaUkrase[Stvarno])","v":{"v":300,"d":"300.00 RSD"}},null,"Zbir",{"$f":"SUBTOTAL(109,TroškoviPrograma[Procenjeno])","v":{"v":30,"d":"30.00 RSD"}},{"$f":"SUBTOTAL(109,TroškoviPrograma[Stvarno])","v":{"v":0,"d":"0.00 RSD"}}]
[]
["Unesite Troškovi Oglašavanja saopštenja u tabelu koja počinje od ćelije sa desne strane, a Troškovi Za Nagrade u tabelu koja počinje od ćelije F21. Sledeće uputstvo se nalazi u ćeliji A27","Publicitet","Procenjeno","Stvarno",null,"Nagrade","Procenjeno","Stvarno"]
[null,"Grafički radovi",{"$nulls":3},"Trake/plakete/trofeji"]
[null,"Fotokopiranje/štampanje",{"v":20,"d":"20.00 RSD"},null,null,"Pokloni",{"v":100,"d":"100.00 RSD"}]
[null,"Poštarina",{"$nulls":3},"Zbir",{"$f":"SUBTOTAL(109,TroškoviZaNagrade[Procenjeno])","v":{"v":100,"d":"100.00 RSD"}},{"$f":"SUBTOTAL(109,TroškoviZaNagrade[Stvarno])","v":{"v":0,"d":"0.00 RSD"}}]
[null,"Zbir",{"$f":"SUBTOTAL(109,TroškoviOglašavanja[Procenjeno])","v":{"v":20,"d":"20.00 RSD"}},{"$f":"SUBTOTAL(109,TroškoviOglašavanja[Stvarno])","v":{"v":0,"d":"0.00 RSD"}}]
[]
["Unesite Razni Troškovi u tabelu koja počinje od ćelije sa desne strane.","Razno","Procenjeno","Stvarno"]
[null,"Telefon",null,{"v":13,"d":"13.00 RSD"}]
[null,"Prevoz",{"v":12,"d":"12.00 RSD"}]
[null,"Kancelarijski materijal"]
[null,"Usluge faksa"]
[null,"Zbir",{"$f":"SUBTOTAL(109,RazniTroškovi[Procenjeno])","v":{"v":12,"d":"12.00 RSD"}},{"$f":"SUBTOTAL(109,RazniTroškovi[Stvarno])","v":{"v":13,"d":"13.00 RSD"}}]

{"sheet":"Prihod","index":2,"n_rows":29,"n_cols":7,"rows_kept":29,"merged":[[0,1,0,3],[2,1,3,1]]}
["Unesite procenjeno i stvarno prihode iz svake kategorije u odgovarajuće tabele na ovom radnom listu. Naslov ovog radnog lista se automatski ažurira u ćeliji sa desne strane. Podnaslov je u ćeliji G1. Korisna uputstva o tome kako da koristite ovaj radni list nalaze se u ćelijama u ovoj koloni. Sledeće uputstvo se nalazi u ćeliji A3.",{"$f":"Troškovi!B1","v":"Budžet događaja za Ime događaja"},{"$nulls":4},"PRIHOD"]
[]
["Oznaka „Ukupan prihod“ se nalazi u ćeliji sa desne strane, oznaka „Procenjeno“ u ćeliji F3, a „Stvarno“ u ćeliji G3.","UKUPAN PRIHOD",{"$nulls":3},"Procenjeno","Stvarno"]
["Ukupan procenjen prihod se automatski izračunava u ćeliji F4, a ukupan stvarni prihod u ćeliji G4.",{"$nulls":4},{"$f":"SUM(Ulaz[[#Totals],[Procenjeni prihod]],ReklameUProgramu[[#Totals],[Procenjeni prihod]],IzlagačiIProdavci[[#Totals],[Procenjeni prihod]],ProdajaArtikala[[#Totals],[Procenjeni prihod]])","v":{"v":1936,"d":"1,936.00 RSD"}},{"$f":"SUM(Ulaz[[#Totals],[Stvarni prihod]],ReklameUProgramu[[#Totals],[Stvarni prihod]],IzlagačiIProdavci[[#Totals],[Stvarni prihod]],ProdajaArtikala[[#Totals],[Stvarni prihod]])","v":{"v":1831,"d":"1,831.00 RSD"}}]
["Oznaka „Ulaz“ nalazi se u ćeliji sa desne strane.","ULAZ"]
["Unesite procenjeni i stvarni broj posetilaca sa cenom karte u tabelu koja počinje od ćelije sa desne strane. Procenjeni i stvarni prihod od ulaza automatski se izračunava. Sledeće uputstvo se nalazi u ćeliji A11.","Procenjeni br.","Stvarni br.","Tip","Cena","Procenjeni prihod","Stvarni prihod"]
[null,300,278,"Odrasli @",{"v":5,"d":"5.00 RSD"},{"$f":"B7*E7","v":{"v":1500,"d":"1,500.00 RSD"}},{"$f":"C7*E7","v":{"v":1390,"d":"1,390.00 RSD"}}]
[null,197,195,"Deca @",{"v":2,"d":"2.00 RSD"},{"$f":"B8*E8","v":{"v":394,"d":"394.00 RSD"}},{"$f":"C8*E8","v":{"v":390,"d":"390.00 RSD"}}]
[null,42,51,"Drugo @",{"v":1,"d":"1.00 RSD"},{"$f":"B9*E9","v":{"v":42,"d":"42.00 RSD"}},{"$f":"C9*E9","v":{"v":51,"d":"51.00 RSD"}}]
[null,"Zbir",{"$nulls":3},{"$f":"SUBTOTAL(109,Ulaz[Procenjeni prihod])","v":{"v":1936,"d":"1,936.00 RSD"}},{"$f":"SUBTOTAL(109,Ulaz[Stvarni prihod])","v":{"v":1831,"d":"1,831.00 RSD"}}]
["Oznaka „Reklame u programu“ nalazi se u ćeliji sa desne strane.","REKLAME U PROGRAMU"]
["Unesite procenjeni i stvarni broj reklama u programu i cenu reklame u tabelu koja počinje od ćelije sa desne strane. Procenjeni i stvarni prihod od reklama se automatski izračunava. Sledeće uputstvo se nalazi u ćeliji A17.","Procenjeni br.","Stvarni br.","Tip","Cena","Procenjeni prihod","Stvarni prihod"]
[null,12,null,"Naslovne stranice @",null,{"$f":"B13*E13","v":{"v":0,"d":"0.00 RSD"}},{"$f":"C13*E13","v":{"v":0,"d":"0.00 RSD"}}]
[null,null,158,"Polovine stranice @",null,{"$f":"B14*E14","v":{"v":0,"d":"0.00 RSD"}},{"$f":"C14*E14","v":{"v":0,"d":"0.00 RSD"}}]
[null,4,null,"Četvrtine stranice @",null,{"$f":"B15*E15","v":{"v":0,"d":"0.00 RSD"}},{"$f":"C15*E15","v":{"v":0,"d":"0.00 RSD"}}]
[null,"Zbir",{"$nulls":3},{"$f":"SUBTOTAL(109,ReklameUProgramu[Procenjeni prihod])","v":{"v":0,"d":"0.00 RSD"}},{"$f":"SUBTOTAL(109,ReklameUProgramu[Stvarni prihod])","v":{"v":0,"d":"0.00 RSD"}}]
["Oznaka „Izlagači ili prodavci“ nalazi se u ćeliji sa desne strane.","IZLAGAČI/PRODAVCI"]
["Unesite procenjeni i stvarni broj izlagača i prodavaca i cenu štanda u tabelu koja počinje od ćelije sa desne strane. Procenjeni i stvarni prihod se automatski izračunava. Sledeće uputstvo se nalazi u ćeliji A23.","Procenjeni br.","Stvarni br.","Tip","Cena","Procenjeni prihod","Stvarni prihod"]
[null,23,null,"Veliki štandovi @",null,{"$f":"B19*E19","v":{"v":0,"d":"0.00 RSD"}},{"$f":"C19*E19","v":{"v":0,"d":"0.00 RSD"}}]
[null,354,null,"Srednji štandovi @",null,{"$f":"B20*E20","v":{"v":0,"d":"0.00 RSD"}},{"$f":"C20*E20","v":{"v":0,"d":"0.00 RSD"}}]
[null,56,null,"Mali štandovi @",null,{"$f":"B21*E21","v":{"v":0,"d":"0.00 RSD"}},{"$f":"C21*E21","v":{"v":0,"d":"0.00 RSD"}}]
[null,"Zbir",{"$nulls":3},{"$f":"SUBTOTAL(109,IzlagačiIProdavci[Procenjeni prihod])","v":{"v":0,"d":"0.00 RSD"}},{"$f":"SUBTOTAL(109,IzlagačiIProdavci[Stvarni prihod])","v":{"v":0,"d":"0.00 RSD"}}]
["Oznaka „Prodaja artikala“ je u ćeliji sa desne strane.","PRODAJA ARTIKALA"]
["Unesite procenjeni i stvarni broj prodatih artikala i cene artikala u tabelu koja počinje od ćelije sa desne strane. Procenjeni i stvarni prihod se automatski izračunava.","Procenjeni br.","Stvarni br.","Tip","Cena","Procenjeni prihod","Stvarni prihod"]
[{"$nulls":3},"Artikli @",null,{"$f":"B25*E25","v":{"v":0,"d":"0.00 RSD"}},{"$f":"C25*E25","v":{"v":0,"d":"0.00 RSD"}}]
[null,123,null,"Artikli @",null,{"$f":"B26*E26","v":{"v":0,"d":"0.00 RSD"}},{"$f":"C26*E26","v":{"v":0,"d":"0.00 RSD"}}]
[{"$nulls":3},"Artikli @",null,{"$f":"B27*E27","v":{"v":0,"d":"0.00 RSD"}},{"$f":"C27*E27","v":{"v":0,"d":"0.00 RSD"}}]
[null,13,null,"Artikli @",null,{"$f":"B28*E28","v":{"v":0,"d":"0.00 RSD"}},{"$f":"C28*E28","v":{"v":0,"d":"0.00 RSD"}}]
[null,"Zbir",{"$nulls":3},{"$f":"SUBTOTAL(109,ProdajaArtikala[Procenjeni prihod])","v":{"v":0,"d":"0.00 RSD"}},{"$f":"SUBTOTAL(109,ProdajaArtikala[Stvarni prihod])","v":{"v":0,"d":"0.00 RSD"}}]

{"sheet":"Rezime profita i gubitka","index":3,"n_rows":8,"n_cols":7,"rows_kept":8,"merged":[[0,1,0,3],[2,4,11,6]]}
["Rezime i grafikon profita i gubitaka koji prikazuju ukupan prihod i rashod automatski se ažuriraju na ovom radnom listu. Naslov ovog radnog lista se automatski ažurira u ćeliji sa desne strane. Podnaslov je u ćelijama G1 i G2. Korisna uputstva o tome kako da koristite ovaj radni list nalaze se u ćelijama u ovoj koloni. Sledeće uputstvo se nalazi u ćeliji A3.",{"$f":"Troškovi!B1","v":"Budžet događaja za Ime događaja"},{"$nulls":4},"PROFIT "]
[{"$nulls":6},"Rezime gubitka"]
["Trakasti grafikon koji poredi procenjene i stvarne prihoda i rashoda nalazi se u ćeliji E3.",{"$nulls":3},"Trakasti grafikon koji prikazuje poređenje procenjenih i stvarnih prihoda i Troškovi nalazi se u ovoj ćeliji."]
["Tabela sa rezimeom koja počinje u ćeliji sa desne strane automatski se ažurira. Sledeće uputstvo se nalazi u ćeliji A8."," Zbir","Procenjeno","Stvarno"]
[null,"Ukupan prihod",{"$f":"Prihod!F4","v":{"v":1936,"d":"1,936.00 RSD"}},{"$f":"Prihod!G4","v":{"v":1831,"d":"1,831.00 RSD"}}]
[null,"Ukupan Troškovi",{"$f":"Troškovi!G4","v":{"v":882,"d":"882.00 RSD"}},{"$f":"Troškovi!H4","v":{"v":333,"d":"333.00 RSD"}}]
[]
["Procenjen ukupni profit ili gubitak automatski se izračunava u ćeliji C8, a stvaran ukupan profit odnosno gubitak u ćeliji D8.","Ukupni profit              (ili gubitak)",{"$f":"C5-C6","v":{"v":1054,"d":"1,054.00 RSD"}},{"$f":"D5-D6","v":{"v":1498,"d":"1,498.00 RSD"}}]